bitfinex/quotes_ETHUSD_20250328
["timestamp","ask_amount","ask_price","bid_price","bid_amount"]
[1743166102462,0.05,1891.9,1891.7,10.57225]
[1743166102953,0.05,1891.9,1891.8,12.76247]
[1743166103505,0.05,1891.9,1891.8,15.76247]
[1743166103829,0.05,1891.9,1891.8,52.19150264]
[1743166103955,0.05,1891.9,1891.8,41.49656864]
[1743166104297,0.05,1891.9,1891.8,37.75647464]
[1743166104500,0.05,1891.9,1891.8,38.49010728]
[1743166105361,0.05,1891.9,1891.8,36.94210628]
[1743166105976,0.05,1891.9,1891.8,26.92437528]
[1743166106155,0.05,1891.9,1891.8,10.95132128]
[1743166106360,0.05,1891.9,1891.8,13.88732128]
[1743166107084,0.05,1891.9,1891.8,5.936]
[1743166107385,5.33569,1891.9,1891.8,5.936]
[1743166107595,0.05,1891.9,1891.8,5.936]
[1743166108201,0.05,1891.9,1891.8,11.22197]
[1743166108805,0.05,1891.9,1891.8,5.936]
[1743166109186,6.83999,1891.9,1891.8,5.936]
[1743166109393,0.05,1891.9,1891.8,5.936]
[1743166110114,0.05,1891.9,1891.8,11.22197]
[1743166110474,0.05,1891.9,1891.8,13.29266653]
[1743166111374,0.05,1891.9,1891.8,11.22197]
[1743166113177,0.05,1891.9,1891.8,5.936]
[1743166113597,0.05,1891.9,1891.8,11.22197]
[1743166115077,0.05,1891.9,1891.8,13.22797]
[1743166115272,0.05,1891.9,1891.8,11.22197]
[1743166115506,0.05,1891.9,1891.8,13.39825843]
[1743166115722,0.05,1891.9,1891.6,33.23235]
[1743166115880,0.05,1891.9,1891.8,5.932]
[1743166116212,5.33569,1891.9,1891.8,5.932]
[1743166116781,0.05,1891.9,1891.8,5.932]
[1743166118483,5.33569,1891.9,1891.8,5.932]
[1743166119701,0.05,1891.9,1891.8,5.932]
[1743166122403,0.05,1891.9,1891.8,6.5252]
[1743166122582,0.05,1891.9,1891.8,11.81117]
[1743166122790,0.05,1891.9,1891.8,13.31087]
[1743166123486,5.33569,1891.9,1891.8,5.932]
[1743166123686,6.94369,1891.9,1891.8,5.932]
[1743166123887,10.57223,1891.8,1891.7,5.929]
[1743166124404,5.28604,1891.8,1891.7,5.929]
[1743166129214,12.22956,1891.9,1891.7,5.929]
[1743166129423,12.2296,1891.9,1891.7,5.929]
[1743166129593,0.05,1891.9,1891.7,14.4567805]
[1743166129900,0.05,1891.9,1891.7,19.7429205]
[1743166130101,0.05,1891.9,1891.8,6.83207]
[1743166131032,0.05,1891.9,1891.8,1.5461]
[1743166131629,0.05,1891.9,1891.8,6.83207]
[1743166131831,0.05,1891.9,1891.8,8.96095505]
[1743166132500,0.05,1891.9,1891.8,9.01380734]
[1743166132700,0.05,1891.9,1891.8,11.96095505]
[1743166134905,0.05,1891.9,1891.8,13.01292902]
[1743166138640,0.05,1891.9,1891.8,47.45972602]
[1743166138950,0.05,1891.9,1891.8,30.63902202]
[1743166139111,0.05,1891.9,1891.8,19.29515552]
[1743166144014,1e-05,1891.9,1891.8,19.84515552]
[1743166145419,1.4994,1892.7,1892.5,5.28376]
[1743166145618,1.4994,1892.7,1892.6,5.919]
[1743166145934,1.4654,1893.0,1892.6,8.5678305]
[1743166146133,0.1139178,1893.4,1892.6,8.5678305]
[1743166146134,1.4654,1893.2,1892.8,5.28297]
[1743166146313,6.74771,1893.2,1892.8,10.56594]
[1743166146517,1.4654,1893.2,1892.9,5.28279]
[1743166147143,1.4654,1893.2,1893.0,5.28244]
[1743166147440,1.4654,1893.2,1893.1,11.19934]
[1743166147621,0.1139178,1893.4,1893.3,5.28178]
[1743166147823,0.1139178,1893.4,1893.2,5.28182]
[1743166148237,0.1139178,1893.4,1893.1,11.19933]
[1743166148433,0.1139178,1893.4,1893.2,1.119933]
[1743166148634,0.1139178,1893.4,1893.3,5.33459629]
[1743166148839,0.1139178,1893.4,1893.3,5.28178]
[1743166150433,0.1139178,1893.4,1893.3,5.67577929]
[1743166151114,0.1139178,1893.4,1893.3,0.39399929]
[1743166151353,0.1139178,1893.4,1893.3,0.84019923]
[1743166151853,5.3954178,1893.4,1893.2,1.119933]
[1743166152148,5.3954178,1893.4,1893.1,1.04071391]
[1743166152363,6.78819,1893.3,1893.1,5.914]
[1743166152569,1.5064,1893.3,1893.1,11.19607]
[1743166152750,0.1139178,1893.4,1893.2,6.81911]
[1743166153051,0.1139178,1893.4,1893.3,7.9306105]
[1743166153259,0.1139178,1893.4,1893.3,9.40558255]
[1743166153442,0.1139178,1893.4,1893.3,6.75675205]
[1743166155541,0.1139178,1893.4,1893.3,9.40558255]
[1743166155954,0.1139178,1893.4,1893.3,6.75675205]
[1743166157777,0.1139178,1893.4,1893.3,1.47497205]
[1743166157979,0.1139178,1893.4,1893.2,6.35558284]
[1743166158184,0.1139178,1893.4,1893.3,5.28178]
[1743166158350,0.1139178,1893.4,1893.2,6.35557284]
[1743166158863,0.1139178,1893.4,1893.2,11.63753284]
[1743166159067,0.1139178,1893.4,1893.2,6.35557284]
[1743166159277,1.6683178,1893.4,1893.3,5.91]
[1743166159768,0.1139178,1893.4,1893.3,15.11998621]
[1743166159984,0.1139178,1893.4,1893.3,16.61807178]
[1743166160677,0.1139178,1893.4,1893.3,13.96924128]
[1743166160878,0.1139178,1893.4,1893.3,12.41834128]
[1743166162051,0.1139178,1893.4,1893.3,15.06717178]
[1743166162586,0.1139178,1893.4,1893.3,44.54307178]
[1743166163851,0.1139178,1893.4,1893.3,47.54307178]
[1743166164047,0.1139178,1893.4,1893.3,44.89424128]
[1743166164263,0.1139178,1893.4,1893.3,47.54307178]
[1743166164478,0.1139178,1893.4,1893.3,40.34334128]
[1743166164779,0.1139178,1893.4,1893.3,35.06156128]
[1743166164983,0.1139178,1893.4,1893.3,33.835]
[1743166165185,0.1139178,1893.4,1893.3,41.7656105]
[1743166166260,0.1139178,1893.4,1893.3,39.11678]
[1743166166466,0.1139178,1893.4,1893.3,27.925]
[1743166166665,5.3954178,1893.4,1893.3,33.831]
[1743166166864,0.1139178,1893.4,1893.3,33.831]
[1743166167155,0.1139178,1893.4,1893.3,5.906]
[1743166167892,0.1139178,1893.4,1893.3,7.13215428]
[1743166168383,0.1139178,1893.4,1893.3,12.41393428]
[1743166170594,0.1139178,1893.4,1893.3,15.06276478]
[1743166170960,0.1139178,1893.4,1893.3,16.62936478]
[1743166172201,0.1139178,1893.4,1893.3,44.55236478]
[1743166172571,0.1139178,1893.4,1893.3,101.07958878]
[1743166173277,0.1139178,1893.4,1893.3,91.78282078]
[1743166173705,0.1139178,1893.4,1893.3,87.03261978]
[1743166173866,0.1139178,1893.4,1893.3,83.70955078]
[1743166174891,7.8e-06,1893.4,1893.3,83.70955078]
[1743166175260,7.8e-06,1893.4,1893.3,74.60472028]
[1743166175462,7.8e-06,1893.4,1893.3,47.54736478]
[1743166175896,7.8e-06,1893.4,1893.3,57.22821578]
[1743166176289,7.8e-06,1893.4,1893.3,54.57938528]
[1743166176494,7.8e-06,1893.4,1893.3,54.91546778]
[1743166181588,7.8e-06,1893.4,1893.3,47.54736478]
[1743166181772,7.8e-06,1893.4,1893.3,42.98076478]
[1743166181987,7.8e-06,1893.4,1893.3,55.06249178]
[1743166184012,7.8e-06,1893.4,1893.3,17.26968378]
[1743166184169,7.8e-06,1893.4,1893.3,42.97276478]
[1743166184672,7.8e-06,1893.4,1893.3,39.09778]
[1743166184979,7.8e-06,1893.4,1893.3,33.816]
[1743166185293,7.8e-06,1893.4,1893.3,39.09778]
[1743166185863,7.8e-06,1893.4,1893.3,73.4078865]
[1743166186081,7.8e-06,1893.4,1893.3,60.3575145]
[1743166186419,7.8e-06,1893.4,1893.3,46.7725105]
[1743166186571,7.8e-06,1893.4,1893.3,58.1654805]
[1743166187004,7.8e-06,1893.4,1893.3,52.3594045]
[1743166187888,7.8e-06,1893.4,1893.3,49.710574]
[1743166188071,7.8e-06,1893.4,1893.3,52.3594045]
[1743166189372,7.8e-06,1893.4,1893.3,52.2818045]
[1743166190076,7.8e-06,1893.4,1893.3,52.2005045]
[1743166190520,7.8e-06,1893.4,1893.3,52.7505045]
[1743166191681,7.8e-06,1893.4,1893.3,43.654674]
[1743166191886,7.8e-06,1893.4,1893.3,41.93588]
[1743166192575,7.8e-06,1893.4,1893.3,48.819564]
[1743166192773,7.8e-06,1893.4,1893.3,44.559564]
[1743166194407,7.8e-06,1893.4,1893.3,46.133464]
[1743166195898,7.8e-06,1893.4,1893.3,40.239464]
[1743166196098,7.8e-06,1893.4,1893.3,46.131464]
[1743166196507,7.8e-06,1893.4,1893.3,44.557564]
[1743166199197,7.8e-06,1893.4,1893.3,41.93388]
[1743166199395,7.8e-06,1893.4,1893.3,68.82832]
[1743166200225,7.8e-06,1893.4,1893.3,70.39252]
[1743166200414,7.8e-06,1893.4,1893.3,70.94252]
[1743166202198,7.8e-06,1893.4,1893.3,70.39252]
[1743166203999,7.8e-06,1893.4,1893.3,70.94252]
[1743166206937,7.8e-06,1893.4,1893.3,73.5913505]
[1743166210333,7.8e-06,1893.4,1893.3,67.6993505]
[1743166210533,7.8e-06,1893.4,1893.3,73.5843505]
[1743166211234,7.8e-06,1893.4,1893.3,67.1493505]
[1743166211410,1.5443078,1893.4,1893.3,43.392536]
[1743166211610,1.5443078,1893.4,1893.3,37.508536]
[1743166211817,1.5443078,1893.4,1893.3,43.392536]
[1743166212024,1.5443078,1893.4,1893.3,45.0176265]
[1743166212222,7.8e-06,1893.4,1893.3,48.0176265]
[1743166212606,7.8e-06,1893.4,1893.3,39.1336265]
[1743166212812,1.4995078,1893.4,1893.3,41.92588]
[1743166213844,1.4995078,1893.4,1893.3,27.7601]
[1743166214135,1.4995078,1893.4,1893.3,38.92488]
[1743166215042,1.4995078,1893.4,1893.3,13.8136105]
[1743166215816,1.4995078,1893.4,1893.3,11.16478]
[1743166217432,1.4995078,1893.4,1893.3,13.8136105]
[1743166225357,1.4995078,1893.4,1893.3,5.883]
[1743166225521,1.4995078,1893.4,1893.3,11.16478]
[1743166225954,1.4995078,1893.4,1893.3,5.883]
[1743166226124,1.4995078,1893.4,1893.3,11.16478]
[1743166229724,7.8e-06,1893.4,1893.3,13.8136105]
[1743166229939,7.8e-06,1893.4,1893.3,46.79801583]
[1743166230143,7.8e-06,1893.4,1893.3,34.44841783]
[1743166230329,7.8e-06,1893.4,1893.3,28.62047283]
[1743166230631,7.8e-06,1893.4,1893.3,26.89091683]
[1743166230837,7.8e-06,1893.4,1893.3,25.41411683]
[1743166231926,7.8e-06,1893.4,1893.3,14.16478]
[1743166232146,7.8e-06,1893.4,1893.3,16.8136105]
[1743166232345,7.8e-06,1893.4,1893.3,11.16478]
[1743166233556,7.8e-06,1893.4,1893.3,5.883]
[1743166234563,7.8e-06,1893.4,1893.2,1.07367284]
[1743166234866,1.4644,1893.3,1893.2,1.07367284]
[1743166235161,1.4644,1893.3,1893.2,6.94867284]
[1743166235370,1.4644,1893.3,1893.2,12.23073284]
[1743166235769,1.4644,1893.3,1893.2,1.07367284]
[1743166235949,6.74618,1893.3,1893.0,33.20252]
[1743166236151,6.74618,1893.3,1893.2,5.874]
[1743166236349,6.53737396,1893.3,1893.2,5.874]
[1743166236550,5.28262,1893.0,1892.9,6.68688959]
[1743166236753,6.86672,1893.0,1892.9,6.68688959]
[1743166236944,1.5841,1893.0,1892.9,6.68688959]
[1743166237145,6.86672,1893.0,1892.9,6.68688959]
[1743166237366,8.081626,1893.0,1892.9,6.68688959]
[1743166238780,10.7304565,1893.0,1892.9,6.68688959]
[1743166239163,6.73695,1892.7,1892.6,5.873]
[1743166239469,1.4535,1892.7,1892.6,5.873]
[1743166239951,1.4535,1892.7,1892.6,11.15673]
[1743166241178,1.4535,1892.7,1892.6,5.873]
[1743166242376,1.4535,1892.7,1892.6,11.15673]
[1743166242880,1.5716,1893.0,1892.6,7.78193105]
[1743166243078,1.5716,1893.0,1892.9,7.9317205]
[1743166243378,1.5716,1893.0,1892.9,7.98454633]
[1743166243685,0.52814958,1893.4,1893.2,5.28193]
[1743166243686,1.5716078,1893.4,1893.2,5.28193]
[1743166243881,1.5716078,1893.4,1893.2,11.15393]
[1743166245867,1.5716078,1893.4,1893.3,5.28178]
[1743166247186,1.5716078,1893.4,1893.2,11.15393]
[1743166247680,1.5716078,1893.4,1893.2,11.15391]
[1743166247979,1.5716078,1893.4,1893.2,16.43582]
[1743166248160,1.5716078,1893.4,1893.2,11.15391]
[1743166248686,1.5716078,1893.4,1893.2,16.43585]
[1743166248875,1.5716078,1893.4,1893.3,5.28178]
[1743166249077,1.5716078,1893.4,1893.2,11.15391]
[1743166249254,1.5716078,1893.4,1893.2,11.15386]
[1743166249461,7.8e-06,1893.4,1893.3,5.28178]
[1743166251185,1.5373078,1893.4,1893.2,5.872]
[1743166251529,2.21917158,1893.4,1893.2,5.872]
[1743166251784,7.8e-06,1893.4,1893.2,13.85569919]
[1743166251967,7.8e-06,1893.4,1893.3,5.28178]
[1743166253193,1.4555,1893.3,1892.9,27.926]
[1743166253485,1.5483,1893.0,1892.9,27.926]
[1743166253662,6.83092,1893.0,1892.9,27.926]
[1743166253863,6.83175,1892.7,1892.6,5.867]
[1743166254079,1.5483,1892.7,1892.6,5.867]
[1743166254288,1.5617,1892.9,1892.7,5.28328]
[1743166254602,1.5617,1893.1,1892.8,7.9320005]
[1743166254773,1.5617,1893.1,1892.9,5.28287]
[1743166254960,1.5617,1893.1,1892.9,5.2828]
[1743166255286,1.5617,1893.1,1892.9,5.33561444]
[1743166255488,1.5617,1893.1,1893.0,5.28262]
[1743166256087,7.8e-06,1893.4,1893.2,5.28195]
[1743166256271,7.8e-06,1893.4,1893.3,5.867]
[1743166257163,7.8e-06,1893.4,1893.3,11.14878]
[1743166257355,7.8e-06,1893.4,1893.3,5.867]
[1743166257560,7.8e-06,1893.4,1893.3,11.14878]
[1743166257866,7.8e-06,1893.4,1893.3,5.867]
[1743166258588,7.8e-06,1893.4,1893.3,11.14878]
[1743166258887,7.8e-06,1893.4,1893.3,5.867]
[1743166259887,7.8e-06,1893.4,1893.3,11.14878]
[1743166260586,7.8e-06,1893.4,1893.3,5.867]
[1743166260794,7.8e-06,1893.4,1893.3,11.14878]
[1743166261397,7.8e-06,1893.4,1893.3,5.867]
[1743166261567,2.09004258,1893.4,1893.3,5.867]
[1743166261774,7.37154258,1893.4,1893.3,5.867]
[1743166261974,7.37154258,1893.4,1893.0,33.21061]
[1743166262170,1.5619078,1893.4,1893.2,11.14597]
[1743166262387,7.8e-06,1893.4,1893.3,7.98343051]
[1743166262811,7.8e-06,1893.4,1893.3,31.76100251]
[1743166262985,7.8e-06,1893.4,1893.3,22.8204485]
[1743166264782,7.8e-06,1893.4,1893.3,16.6563765]
[1743166265307,7.8e-06,1893.4,1893.3,16.3367355]
[1743166265516,7.8e-06,1893.4,1893.3,15.4691195]
[1743166265720,7.8e-06,1893.4,1893.3,5.28178]
[1743166266015,7.8e-06,1893.4,1893.2,11.54152032]
[1743166266302,7.8e-06,1893.4,1893.3,5.28178]
[1743166267135,7.8e-06,1893.4,1893.3,7.9306105]
[1743166267297,7.8e-06,1893.4,1893.3,8.99956068]
[1743166269504,7.8e-06,1893.4,1893.3,7.9306105]
[1743166269704,7.8e-06,1893.4,1893.2,16.82347032]
[1743166270035,7.8e-06,1893.4,1893.3,5.28178]
[1743166270832,7.8e-06,1893.4,1893.2,11.54149032]
[1743166271038,1.5745078,1893.4,1893.2,11.54149032]
[1743166271234,1.5745078,1893.4,1893.2,16.82341032]
[1743166271442,1.5745078,1893.4,1893.3,5.28178]
[1743166271735,1.5745078,1893.4,1893.2,16.82341032]
[1743166271938,1.5745078,1893.4,1893.3,5.28178]
[1743166272134,7.8e-06,1893.4,1893.3,5.28178]
[1743166272640,7.8e-06,1893.4,1893.3,7.9306105]
[1743166276347,7.8e-06,1893.4,1893.3,7.22899008]
[1743166276634,1.4717078,1893.4,1893.3,5.857]
[1743166277242,1.4717078,1893.4,1893.1,5.28217]
[1743166277417,1.4717078,1893.4,1893.3,5.856]
[1743166277624,6.7532078,1893.4,1893.0,33.61476678]
[1743166277868,1.4606,1893.1,1893.0,27.928]
[1743166278143,2.134866,1893.1,1892.9,5.28287]
[1743166278443,1.4606,1893.1,1892.9,11.13887]
[1743166278646,1.4606,1893.1,1892.9,16.42166]
[1743166278849,1.4606,1893.1,1892.9,11.13879]
[1743166279339,1.4606,1893.1,1892.9,5.856]
[1743166279946,1.4606,1893.1,1892.8,5.856]
[1743166279947,5.28278,1893.0,1892.8,5.856]
[1743166280241,2.090578,1892.9,1892.3,5.28446]
[1743166280442,2.090578,1892.9,1892.2,4.1926305]
[1743166280443,5.28392,1892.6,1892.2,3.05359366]
[1743166280649,6.71531,1892.5,1892.2,5.855]
[1743166280821,2.6488305,1892.7,1891.9,1.05736425]
[1743166280822,5.28488,1892.2,1891.9,1.05736425]
[1743166281012,5.28525,1892.1,1891.9,1.05736425]
[1743166281213,1.4312,1892.0,1891.8,11.14091]
[1743166281408,1.4312,1892.2,1891.9,5.28569]
[1743166283145,1.4312,1892.2,1891.9,5.2855]
[1743166285115,1.4312,1892.2,1892.0,5.2853]
[1743166285516,1.4958,1892.4,1892.1,5.28493]
[1743166285769,1.4958,1892.4,1892.2,5.28474]
[1743166286122,1.4958,1892.6,1892.3,5.28443]
[1743166286448,6.80888,1893.0,1892.6,5.28362]
[1743166286660,6.80888,1893.0,1892.6,5.28356]
[1743166286951,6.80888,1893.0,1892.6,10.56716]
[1743166287138,6.80888,1893.0,1892.4,4.2119117]
[1743166287139,1.5261,1893.0,1892.7,10.56661]
[1743166287321,1.5261,1893.0,1892.6,5.28372]
[1743166287520,6.80888,1893.0,1892.6,10.56726]
[1743166287725,8.018004,1893.0,1892.6,10.56726]
[1743166287947,2.735224,1893.0,1892.7,5.28331]
[1743166288764,8.017854,1893.0,1892.7,5.28331]
[1743166288971,5.28308,1892.9,1892.5,5.28384]
[1743166289142,5.28308,1892.9,1892.6,5.28372]
[1743166289143,1.4587,1892.8,1892.6,5.28372]
[1743166289325,1.4587,1893.0,1892.7,5.28343]
[1743166289532,6.74135,1893.0,1892.7,5.28343]
[1743166290442,6.74135,1893.0,1892.6,10.96405193]
[1743166290638,5.28296,1892.9,1892.5,6.72269]
[1743166290976,5.28375,1892.6,1892.2,0.40184241]
[1743166291130,5.28375,1892.6,1892.2,11.53951241]
[1743166291478,5.28404,1892.5,1892.2,11.13767]
[1743166291730,1.4417,1892.4,1892.2,11.13785]
[1743166292241,6.72613,1892.4,1892.2,5.853]
[1743166292442,12.683203,1892.4,1892.2,5.853]
[1743166292741,12.683223,1892.4,1892.2,5.853]
[1743166292975,7.398743,1892.4,1892.2,5.853]
[1743166293143,5.28457,1892.3,1892.2,5.853]
[1743166293349,5.28491,1892.2,1891.9,39.07258]
[1743166293679,5.28457,1892.3,1891.9,39.07248]
[1743166294187,10.56937,1892.3,1891.9,39.07248]
[1743166294983,5.28457,1892.3,1891.9,44.35802]
[1743166295384,5.28493,1892.2,1891.9,39.07248]
[1743166295593,10.56934,1892.3,1891.9,39.07248]
[1743166295770,5.28458,1892.3,1891.9,33.787]
[1743166295963,5.28495,1892.2,1891.9,39.07264]
[1743166296162,5.28495,1892.2,1891.9,33.787]
[1743166297394,5.28495,1892.2,1891.9,39.07267]
[1743166297794,5.28495,1892.2,1891.9,33.787]
[1743166297998,11.68437261,1892.3,1891.9,33.787]
[1743166298366,11.68437261,1892.3,1891.9,39.07259]
[1743166298666,6.39964261,1892.3,1891.9,44.35813]
[1743166299174,6.39964261,1892.3,1892.0,5.28538]
[1743166299382,1.4417,1892.4,1891.9,36.4244117]
[1743166299692,8.9709342,1893.0,1891.9,36.4244117]
[1743166299693,1.4619,1892.7,1892.3,2.6374117]
[1743166299860,1.4619,1892.9,1892.6,5.28372]
[1743166300060,0.65802461,1893.0,1892.7,5.28343]
[1743166300268,0.65802461,1893.0,1892.7,10.56679]
[1743166300461,0.65802461,1893.0,1892.7,5.2833]
[1743166301797,6.74428,1893.1,1892.8,5.28314]
[1743166301961,1.4619,1893.1,1892.8,5.28308]
[1743166302480,1.4619,1893.1,1892.8,5.28306]
[1743166302686,1.4619,1893.1,1892.9,5.28289]
[1743166302867,11.99716,1893.3,1892.9,5.28289]
[1743166303068,6.481806,1893.2,1892.8,5.28313]
[1743166303277,6.481806,1893.2,1892.8,5.28303]
[1743166303466,1.199716,1893.2,1892.9,5.28266]
[1743166304094,6.481776,1893.2,1892.8,5.28317]
[1743166304487,1.199716,1893.2,1892.9,5.28276]
[1743166304659,1.199716,1893.2,1892.9,10.56548]
[1743166304864,1.199716,1893.2,1892.9,10.56544]
[1743166305392,1.199716,1893.2,1892.9,5.28272]
[1743166305595,1.199716,1893.2,1893.0,5.2825]
[1743166305768,6.71523,1893.3,1893.0,5.2825]
[1743166308402,1.4334,1893.3,1893.0,10.56498]
[1743166308597,1.4334,1893.3,1893.0,5.28247]
[1743166309504,6.71529,1893.3,1893.0,5.28247]
[1743166310072,11.99732,1893.3,1892.9,14.8421914]
[1743166310272,1.4334,1893.3,1892.9,14.8421114]
[1743166310595,1.4334,1893.3,1893.0,5.28249]
[1743166310794,6.71522,1893.3,1893.0,5.28249]
[1743166312106,11.9972,1893.3,1892.9,16.32632254]
[1743166312306,6.71522,1893.3,1892.9,20.1248414]
[1743166312901,1.4334,1893.3,1893.0,5.28261]
[1743166313087,6.71529,1893.3,1893.0,5.28261]
[1743166313707,1.4334,1893.3,1893.1,5.2822]
[1743166314287,1.4334,1893.3,1893.0,10.56498]
[1743166314505,7.8e-06,1893.4,1893.1,7.92677408]
[1743166314709,7.8e-06,1893.4,1893.1,13.20899408]
[1743166315004,7.8e-06,1893.4,1893.1,7.92677408]
[1743166315395,5.2815278,1893.4,1893.1,2.64468408]
[1743166315783,10.5631978,1893.4,1893.1,2.64468408]
[1743166315983,5.28181,1893.3,1892.9,14.8420114]
[1743166316508,10.56376,1893.3,1892.9,20.1247914]
[1743166316729,5.28309,1892.9,1892.7,27.935]
[1743166316910,5.28319,1892.8,1892.4,7.92889408]
[1743166317121,5.28319,1892.8,1892.4,13.76989408]
[1743166317282,5.959509,1892.8,1892.4,13.76984408]
[1743166317609,5.28319,1892.8,1892.4,13.76984408]
[1743166317810,6.7629,1892.9,1892.6,7.92840408]
[1743166318015,1.48,1892.9,1892.6,7.92840408]
[1743166318685,6.76296,1892.9,1892.6,7.92840408]
[1743166318884,5.2833,1892.8,1892.4,13.76977408]
[1743166319717,5.2833,1892.8,1892.5,5.28397]
[1743166320423,7.439196,1892.9,1892.6,7.92825408]
[1743166320789,7.439196,1892.9,1892.5,5.28397]
[1743166320988,5.28327,1892.8,1892.5,5.84]
[1743166321295,6.0272266,1892.8,1892.5,5.84]
[1743166322623,5.28348,1892.7,1892.5,5.84]
[1743166322787,6.0272266,1892.8,1892.5,5.84]
[1743166322987,6.76294,1892.9,1892.5,5.84]
[1743166322988,1.48,1892.9,1892.6,2.64468408]
[1743166323193,6.84481,1893.1,1892.7,5.28334]
[1743166323395,5.28277,1893.0,1892.7,5.28334]
[1743166323596,6.84474,1893.1,1892.7,10.56661]
[1743166323797,7.529214,1893.1,1892.7,10.56661]
[1743166324088,1.4734,1893.3,1893.0,2.64468408]
[1743166324293,7.8e-06,1893.4,1893.2,2.64468408]
[1743166324821,10.56388,1893.3,1893.0,5.838]
[1743166325020,5.28194,1893.3,1892.9,16.40351]
[1743166325222,1.5248,1893.2,1893.0,5.28249]
[1743166325387,1.05634878,1893.3,1893.1,5.28234]
[1743166325592,1.05634878,1893.3,1893.0,2.64468408]
[1743166325792,1.5248078,1893.4,1892.9,5.838]
[1743166325793,5.28223,1893.2,1892.9,5.838]
[1743166326034,5.28223,1893.2,1892.9,11.12086]
[1743166326396,5.28243,1893.1,1892.9,5.838]
[1743166326621,6.73513,1893.1,1892.9,5.838]
[1743166326821,0.673513,1893.0,1892.9,5.838]
[1743166327144,10.56607,1892.9,1892.6,5.837]
[1743166327420,5.956233,1893.0,1892.7,5.28335]
[1743166327626,0.673513,1893.0,1892.7,13.21133408]
[1743166327823,6.73508,1893.1,1892.8,5.28316]
[1743166328132,5.28208,1893.2,1892.9,7.92752408]
[1743166328343,5.28208,1893.2,1892.9,2.64468408]
[1743166328511,5.28237,1893.1,1892.9,2.64468408]
[1743166328890,10.56425,1893.2,1892.9,2.64468408]
[1743166329094,1.5438,1893.3,1892.9,2.64468408]
[1743166329294,1.5438,1893.3,1893.1,2.64468408]
[1743166330224,10.5632678,1893.4,1893.1,2.64468408]
[1743166330799,10.5632878,1893.4,1893.1,2.64468408]
[1743166331128,1.5674,1892.9,1892.7,1.03811463]
[1743166331432,6.84977,1893.1,1892.8,7.92776408]
[1743166331820,1.5674,1893.1,1892.8,13.21080408]
[1743166332133,1.5674,1893.1,1892.8,7.92772408]
[1743166332336,1.5674,1893.1,1892.8,13.21077408]
[1743166332534,6.84975,1893.1,1892.8,2.64468408]
[1743166332831,5.28267,1893.0,1892.6,13.21197408]
[1743166333038,10.56546,1893.0,1892.6,7.92828408]
[1743166333237,5.2829,1892.9,1892.6,13.76228408]
[1743166333406,10.56598,1892.9,1892.6,8.47868408]
[1743166333600,5.2829,1892.9,1892.6,8.47868408]
[1743166334037,10.56544,1893.0,1892.6,13.76233408]
[1743166334200,6.47754426,1893.0,1892.6,13.76226408]
[1743166334404,6.47754426,1893.0,1892.7,5.28343]
[1743166334600,1.5415,1892.9,1892.4,6.32508124]
[1743166334807,6.82561,1892.5,1892.3,5.833]
[1743166335105,2.752435,1892.5,1892.0,2.64468408]
[1743166335303,5.28485,1892.2,1891.8,35.86163408]
[1743166335617,5.28499,1892.2,1891.8,41.69463408]
[1743166335818,10.57003,1892.2,1891.8,41.69447408]
[1743166336036,5.28524,1892.1,1891.8,36.40968408]
[1743166336247,5.28524,1892.1,1891.8,41.69561408]
[1743166336758,5.28524,1892.1,1891.8,36.40968408]
[1743166336944,5.28524,1892.1,1891.8,5.28589]
[1743166337111,5.28487,1892.2,1891.9,5.28565]
[1743166337319,5.28515,1892.1,1891.7,6.81997]
[1743166337519,5.28487,1892.2,1891.8,5.28581]
[1743166337715,5.28522,1892.1,1891.7,12.65297]
[1743166337916,6.341818,1892.2,1891.8,5.2857]
[1743166338317,1.5561,1892.1,1891.6,6.36251034]
[1743166338519,1.5561,1892.1,1891.5,31.00083785]
[1743166338520,6.84127,1892.1,1891.5,36.42819286]
[1743166338724,5.2859,1891.9,1891.5,41.71485286]
[1743166338927,5.28543,1892.0,1891.6,5.28635]
[1743166339131,11.78373,1892.0,1891.6,5.28635]
[1743166339327,6.84126,1892.1,1891.7,5.2862]
[1743166339755,6.84126,1892.1,1891.8,5.28592]
[1743166339756,1.5561,1892.1,1891.8,5.28592]
[1743166340020,6.84127,1892.1,1891.7,5.28607]
[1743166340320,5.28542,1892.0,1891.7,5.28607]
[1743166340714,6.84127,1892.1,1891.8,5.28595]
[1743166340911,6.84127,1892.1,1891.7,5.28607]
[1743166341245,5.28557,1892.0,1891.6,5.28649]
[1743166341440,12.810717,1892.1,1891.5,36.33686619]
[1743166341612,5.28543,1892.0,1891.7,5.28623]
[1743166341813,12.810697,1892.1,1891.7,5.28623]
[1743166342942,5.28545,1892.0,1891.7,5.28623]
[1743166344656,12.810717,1892.1,1891.7,5.28623]
[1743166344835,5.28543,1892.0,1891.7,5.28623]
[1743166345644,7.525387,1892.1,1891.8,5.2859]
[1743166346019,12.810797,1892.1,1891.7,5.28607]
[1743166346344,7.525387,1892.1,1891.7,10.5722]
[1743166346651,12.810687,1892.1,1891.7,5.28607]
[1743166347454,5.28545,1892.0,1891.7,5.28607]
[1743166347747,5.28545,1892.0,1891.6,13.21253834]
[1743166347951,5.28545,1892.0,1891.5,36.33686619]
[1743166347952,5.28578,1891.9,1891.5,41.62361619]
[1743166348164,5.28578,1891.9,1891.5,41.62352619]
[1743166348467,6.5665137,1892.0,1891.6,5.28636]
[1743166348468,11.8520937,1892.0,1891.6,5.28636]
[1743166348843,5.28569,1891.9,1891.6,5.28636]
[1743166349371,5.28597,1891.8,1891.5,13.68964619]
[1743166349663,6.47091037,1891.9,1891.5,13.68964619]
[1743166349858,5.28569,1891.9,1891.5,13.68946619]
[1743166350066,5.28569,1891.9,1891.6,5.28651]
[1743166350963,2.240227,1892.1,1891.8,5.28587]
[1743166351156,10.56992,1892.2,1891.8,10.57166]
[1743166351355,6.74756,1891.7,1891.4,1.08263766]
[1743166351538,5.28661,1891.6,1891.3,27.945]
[1743166351939,5.28693,1891.5,1891.3,27.945]
[1743166352159,5.28708,1891.4,1891.3,27.945]